bitfinex/quotes_BTCUSD_20241011
["timestamp","ask_amount","ask_price","bid_price","bid_amount"]
[1728616918465,0.01915059,60625.0,60624.0,0.0244]
[1728616922380,0.01915059,60625.0,60624.0,0.172856]
[1728616923897,0.01915059,60625.0,60624.0,0.0244]
[1728616944018,0.01771051,60625.0,60624.0,0.0244]
[1728616947043,0.01852751,60625.0,60624.0,0.0244]
[1728616949509,0.01852751,60625.0,60624.0,0.172856]
[1728616953384,0.000817,60625.0,60624.0,0.172856]
[1728616953616,0.01823219,60625.0,60624.0,0.172856]
[1728616958483,0.01823219,60625.0,60624.0,0.0244]
[1728616959143,0.01823219,60625.0,60624.0,0.04143826]
[1728616960850,0.01823219,60625.0,60624.0,0.04143759]
[1728616961073,0.01823219,60625.0,60624.0,0.026034]
[1728616961314,0.01823219,60625.0,60624.0,0.04143762]
[1728616964366,0.01823219,60625.0,60624.0,0.04143513]
[1728616965455,0.01823219,60625.0,60624.0,0.18989113]
[1728616967728,0.01823219,60625.0,60624.0,0.17449]
[1728616967958,0.01823219,60625.0,60624.0,0.18989073]
[1728616969241,0.01823219,60625.0,60624.0,0.04143473]
[1728616974469,0.01823219,60625.0,60624.0,0.026034]
[1728616974739,0.01823219,60625.0,60624.0,0.04143474]
[1728616978107,0.01823219,60625.0,60624.0,0.04143505]
[1728616988031,0.01823219,60625.0,60624.0,0.18989105]
[1728616988436,0.000817,60625.0,60624.0,0.28889105]
[1728616988657,0.01824186,60625.0,60624.0,0.28889105]
[1728616989808,0.01824186,60625.0,60624.0,0.18989105]
[1728616994556,0.000817,60625.0,60624.0,0.18989105]
[1728617000233,0.000817,60625.0,60624.0,0.17449]
[1728617000433,0.000817,60625.0,60624.0,0.18988635]
[1728617002078,0.000817,60625.0,60624.0,0.19318502]
[1728617002855,0.000817,60625.0,60624.0,0.19318425]
[1728617003705,0.000817,60625.0,60624.0,0.17778867]
[1728617004006,0.000817,60625.0,60624.0,0.19318396]
[1728617004215,0.000817,60625.0,60624.0,0.18988529]
[1728617006096,0.000817,60625.0,60624.0,0.18988486]
[1728617007236,0.000817,60625.0,60624.0,0.17449]
[1728617007449,0.000817,60625.0,60624.0,0.18988354]
[1728617010673,0.000817,60625.0,60624.0,0.19318223]
[1728617013959,0.000817,60625.0,60624.0,0.19318145]
[1728617015527,0.000817,60625.0,60624.0,0.18988276]
[1728617016213,0.000817,60625.0,60624.0,0.19818145]
[1728617016424,0.000817,60625.0,60624.0,0.29713396]
[1728617017101,0.000817,60625.0,60624.0,0.18278869]
[1728617017333,0.000817,60625.0,60624.0,0.22280841]
[1728617017807,0.000817,60625.0,60624.0,0.65627153]
[1728617018248,0.000817,60625.0,60624.0,0.70551095]
[1728617018460,0.000817,60625.0,60624.0,0.65627153]
[1728617019329,0.000817,60625.0,60624.0,0.70550332]
[1728617019782,0.17661232,60642.0,60624.0,0.70550332]
[1728617019783,0.04950616,60651.0,60646.0,0.148402]
[1728617020014,0.1731,60652.0,60646.0,0.148402]
[1728617020015,0.1731,60652.0,60646.0,0.296802]
[1728617020236,0.24774756,60653.0,60646.0,0.296802]
[1728617020237,0.01572635,60650.0,60647.0,0.31216605]
[1728617020471,0.015725,60651.0,60650.0,0.148392]
[1728617020705,0.0753,60660.0,60650.0,0.296783]
[1728617020939,0.0753,60660.0,60651.0,0.01534308]
[1728617021171,0.0753,60660.0,60653.0,0.148384]
[1728617021411,0.223668,60660.0,60653.0,0.148384]
[1728617021655,0.223668,60660.0,60654.0,0.148382]
[1728617021656,0.0753,60660.0,60654.0,0.148382]
[1728617021890,0.0753,60660.0,60651.0,0.296778]
[1728617022120,0.0753,60660.0,60652.0,0.148385]
[1728617022121,0.223668,60660.0,60652.0,0.148385]
[1728617022982,0.01573153,60659.0,60652.0,0.148385]
[1728617023852,0.01573153,60659.0,60654.0,0.014]
[1728617024310,0.16410353,60659.0,60653.0,0.012]
[1728617024736,0.01573153,60659.0,60653.0,0.012]
[1728617024948,0.01573153,60659.0,60651.0,0.148387]
[1728617025158,0.01573153,60659.0,60654.0,0.009]
[1728617025404,0.01573153,60659.0,60654.0,0.022]
[1728617026040,0.16410153,60659.0,60654.0,0.022]
[1728617026267,0.16410153,60659.0,60654.0,0.013]
[1728617027164,0.16410153,60659.0,60654.0,0.006]
[1728617027165,0.01573153,60659.0,60654.0,0.006]
[1728617028327,0.01573153,60659.0,60654.0,0.017]
[1728617029462,0.01573153,60659.0,60654.0,0.011]
[1728617029682,0.01654853,60659.0,60654.0,0.009]
[1728617029902,0.01654853,60659.0,60654.0,0.022]
[1728617030986,0.01654853,60659.0,60652.0,0.148386]
[1728617031224,0.01654853,60659.0,60650.0,0.24774756]
[1728617031225,0.01654853,60659.0,60654.0,0.170381]
[1728617031948,0.01654853,60659.0,60658.0,0.41862451]
[1728617032441,0.000817,60659.0,60658.0,0.319672]
[1728617032670,0.000817,60659.0,60658.0,0.153372]
[1728617033388,0.000817,60659.0,60658.0,0.164372]
[1728617033854,0.000817,60659.0,60658.0,0.178372]
[1728617035291,0.000817,60659.0,60658.0,0.59542886]
[1728617035508,0.000817,60659.0,60658.0,0.3226813]
[1728617035995,0.000817,60659.0,60658.0,0.3506813]
[1728617036132,0.000817,60659.0,60658.0,0.3366813]
[1728617036692,0.000817,60659.0,60658.0,0.3506813]
[1728617043654,0.000817,60659.0,60658.0,0.3226813]
[1728617043952,0.000817,60659.0,60658.0,0.3366813]
[1728617044784,0.000817,60659.0,60658.0,0.3506813]
[1728617045219,0.000817,60659.0,60658.0,0.3366813]
[1728617045763,0.000817,60659.0,60658.0,0.3506813]
[1728617047345,0.000817,60659.0,60658.0,0.3659347]
[1728617047970,0.000817,60659.0,60658.0,0.4592347]
[1728617049542,0.000817,60659.0,60658.0,0.48375346]
[1728617050709,0.000817,60659.0,60658.0,0.56005346]
[1728617051161,0.000817,60659.0,60658.0,0.64605346]
[1728617051642,0.000817,60659.0,60658.0,0.66005346]
[1728617051885,0.000817,60661.0,60660.0,0.148367]
[1728617052097,0.000817,60661.0,60660.0,0.41992525]
[1728617052263,0.000817,60661.0,60660.0,0.45646885]
[1728617052432,0.000817,60661.0,60660.0,0.46146885]
[1728617053454,0.000817,60661.0,60660.0,0.47546885]
[1728617054164,0.000817,60661.0,60660.0,0.48946885]
[1728617055231,0.000817,60661.0,60660.0,0.48946151]
[1728617061530,0.000817,60661.0,60660.0,0.44962881]
[1728617061768,0.000817,60661.0,60660.0,0.48952146]
[1728617062493,0.000817,60661.0,60660.0,0.47417813]
[1728617063900,0.000817,60661.0,60660.0,0.44962881]
[1728617064360,0.000817,60661.0,60660.0,0.19670974]
[1728617064611,0.000817,60661.0,60660.0,0.04334274]
[1728617064849,0.178117,60661.0,60660.0,0.20705488]
[1728617065086,0.19409047,60661.0,60660.0,0.20705488]
[1728617065776,0.19409047,60661.0,60660.0,0.19305488]
[1728617066027,0.19409047,60661.0,60660.0,0.19805488]
[1728617066294,0.19409047,60661.0,60660.0,0.2226151]
[1728617066508,0.19409047,60661.0,60660.0,0.18405488]
[1728617066719,0.19409047,60661.0,60660.0,0.19805488]
[1728617067605,0.19409047,60661.0,60660.0,0.18405488]
[1728617067806,0.19409047,60661.0,60660.0,0.19405488]
[1728617069356,0.19409047,60661.0,60660.0,0.17870974]
[1728617073360,0.178117,60661.0,60660.0,0.17870974]
[1728617074350,0.178117,60661.0,60660.0,0.19404492]
[1728617074575,0.178117,60661.0,60660.0,0.17870974]
[1728617075047,0.178117,60661.0,60660.0,0.163367]
[1728617075283,0.178117,60661.0,60660.0,0.015]
[1728617075551,0.27706951,60661.0,60660.0,0.015]
[1728617075760,0.70965093,60661.0,60660.0,0.015]
[1728617075987,0.73265093,60661.0,60660.0,0.015]
[1728617076227,0.76846106,60661.0,60660.0,0.015]
[1728617076453,0.83265093,60661.0,60660.0,0.005]
[1728617076685,0.88201486,60661.0,60660.0,0.015]
[1728617076901,1.05145756,60661.0,60660.0,0.015]
[1728617077045,1.05145756,60661.0,60660.0,0.005]
[1728617077046,1.00409363,60661.0,60660.0,0.005]
[1728617077473,1.00509363,60661.0,60660.0,0.005]
[1728617077854,1.00509363,60661.0,60659.0,0.001634]
[1728617077855,0.271367,60660.0,60659.0,0.001634]
[1728617078058,0.779819,60660.0,60659.0,0.001634]
[1728617078425,0.79575123,60660.0,60659.0,0.001634]
[1728617079016,0.79875123,60660.0,60659.0,0.001634]
[1728617079437,0.79975123,60660.0,60659.0,0.002634]
[1728617082013,0.99765625,60660.0,60659.0,0.002634]
[1728617083305,0.82821355,60660.0,60659.0,0.002634]
[1728617086392,0.63030853,60660.0,60659.0,0.002634]
[1728617086609,0.72926104,60660.0,60659.0,0.002634]
[1728617089742,0.82821355,60660.0,60659.0,0.002634]
[1728617093565,0.72926104,60660.0,60659.0,0.002634]
[1728617096312,0.82821355,60660.0,60659.0,0.002634]
[1728617096745,0.72926104,60660.0,60659.0,0.002634]
[1728617096966,0.72626104,60660.0,60659.0,0.002634]
[1728617097223,0.72526104,60660.0,60659.0,0.001634]
[1728617097438,0.72826104,60660.0,60659.0,0.002634]
[1728617099215,0.72907804,60660.0,60659.0,0.002634]
[1728617101926,0.53637804,60660.0,60659.0,0.002634]
[1728617102418,0.36706874,60660.0,60659.0,0.002634]
[1728617104839,0.81093055,60660.0,60659.0,0.002634]
[1728617116811,0.61302553,60660.0,60659.0,0.002634]
[1728617117025,0.71197804,60660.0,60659.0,0.002634]
[1728617117234,0.53637804,60660.0,60659.0,0.002634]
[1728617119338,0.01974923,60660.0,60659.0,0.002634]
[1728617119578,0.01974923,60660.0,60659.0,0.151004]
[1728617119806,0.01974923,60660.0,60659.0,0.226504]
[1728617120063,0.003817,60660.0,60659.0,0.226504]
[1728617120370,0.001817,60660.0,60659.0,0.226504]
[1728617120782,0.001817,60660.0,60659.0,0.231504]
[1728617121616,0.000817,60660.0,60659.0,0.230504]
[1728617121845,0.000817,60660.0,60659.0,0.077134]
[1728617122294,0.01707702,60660.0,60659.0,0.233504]
[1728617122751,0.01707702,60660.0,60659.0,0.082134]
[1728617122998,0.01707702,60660.0,60659.0,0.240504]
[1728617127550,0.000817,60660.0,60659.0,0.240504]
[1728617127786,0.01705771,60660.0,60659.0,0.240504]
[1728617129379,0.000817,60660.0,60659.0,0.240504]
[1728617131992,0.000817,60660.0,60659.0,0.338904]
[1728617132207,0.000817,60660.0,60659.0,0.63670605]
[1728617132425,0.000817,60660.0,60659.0,0.66125531]
[1728617133076,0.000817,60660.0,60659.0,0.66123298]
[1728617135488,0.000817,60660.0,60659.0,0.63670605]
[1728617135736,0.000817,60660.0,60659.0,0.66123298]
[1728617135956,0.000817,60660.0,60659.0,0.65202223]
[1728617136396,0.000817,60660.0,60659.0,0.67654916]
[1728617136583,0.000817,60660.0,60659.0,0.65202223]
[1728617138353,0.000817,60660.0,60659.0,0.55306972]
[1728617138576,0.000817,60660.0,60659.0,0.52852948]
[1728617138787,0.000817,60660.0,60659.0,0.38376042]
[1728617138993,0.000817,60660.0,60659.0,0.35922018]
[1728617139527,0.000817,60660.0,60659.0,0.343904]
[1728617139725,0.000817,60660.0,60659.0,0.35922544]
[1728617140387,0.000817,60660.0,60659.0,0.34922544]
[1728617140805,0.000817,60660.0,60659.0,0.35522544]
[1728617141017,0.000817,60660.0,60659.0,0.26282544]
[1728617141229,0.000817,60660.0,60659.0,0.17632544]
[1728617141444,0.37592202,60660.0,60659.0,0.018634]
[1728617141667,0.52428902,60660.0,60659.0,0.018634]
[1728617141878,0.5406131,60660.0,60659.0,0.018634]
[1728617142308,0.5406131,60660.0,60659.0,0.001634]
[1728617142758,0.44166059,60660.0,60659.0,0.005634]
[1728617143651,0.44166059,60660.0,60659.0,0.013634]
[1728617143876,0.44166059,60660.0,60659.0,0.009634]
[1728617144091,0.44166059,60660.0,60659.0,0.002634]
[1728617144542,0.44166059,60660.0,60659.0,0.003634]
[1728617147720,0.5406131,60660.0,60659.0,0.003634]
[1728617148800,0.7099224,60660.0,60659.0,0.003634]
[1728617150651,0.86542304,60660.0,60659.0,0.003634]
[1728617151118,0.87628102,60660.0,60659.0,0.003634]
[1728617151341,0.87428102,60660.0,60659.0,0.003634]
[1728617151561,0.74378038,60660.0,60659.0,0.001634]
[1728617151773,0.74378038,60660.0,60659.0,0.002634]
[1728617152846,0.72078038,60660.0,60659.0,0.002634]
[1728617153977,0.732687,60660.0,60659.0,0.002634]
[1728617159417,0.734687,60660.0,60659.0,0.002634]
[1728617160482,0.732687,60660.0,60659.0,0.002634]
[1728617160708,0.89559707,60660.0,60659.0,0.002634]
[1728617161150,0.757687,60660.0,60659.0,0.002634]
[1728617163139,0.34567536,60660.0,60659.0,0.002634]
[1728617163360,0.17636606,60660.0,60659.0,0.002634]
[1728617163563,0.02799906,60660.0,60659.0,0.002634]
[1728617163815,0.17636606,60660.0,60659.0,0.002634]
[1728617164034,0.02799906,60660.0,60659.0,0.001634]
[1728617164253,0.17636606,60660.0,60659.0,0.006634]
[1728617165418,0.17636606,60660.0,60659.0,0.001634]
[1728617165873,0.17636606,60660.0,60659.0,0.006634]
[1728617166096,0.34567536,60660.0,60659.0,0.006634]
[1728617166318,0.34567536,60660.0,60659.0,0.001634]
[1728617166736,0.34567536,60660.0,60659.0,0.005634]
[1728617167199,0.34667536,60660.0,60659.0,0.001634]
[1728617167424,0.34567536,60660.0,60659.0,0.002634]
[1728617167641,0.34767536,60660.0,60659.0,0.002634]
[1728617169638,0.42857536,60660.0,60659.0,0.002634]
[1728617169858,0.60205117,60660.0,60659.0,0.002634]
[1728617170318,0.74668207,60660.0,60659.0,0.002634]
[1728617170531,0.45157536,60660.0,60659.0,0.002634]
[1728617172046,0.60205117,60660.0,60659.0,0.002634]
[1728617174325,0.45157536,60660.0,60659.0,0.002634]
[1728617174531,0.60205117,60660.0,60659.0,0.002634]
[1728617175420,0.61376317,60660.0,60659.0,0.002634]
[1728617175872,0.76449655,60660.0,60659.0,0.002634]
[1728617177436,0.61376317,60660.0,60659.0,0.002634]
[1728617179125,0.45157536,60660.0,60659.0,0.002634]
[1728617180032,0.37067536,60660.0,60659.0,0.002634]
[1728617180284,0.32884187,60660.0,60659.0,0.002634]
[1728617182943,0.49815117,60660.0,60659.0,0.002634]
[1728617183865,0.34767536,60660.0,60659.0,0.002634]
[1728617184108,0.49815117,60660.0,60659.0,0.002634]
[1728617187113,0.67145117,60660.0,60659.0,0.002634]
[1728617187564,0.72076396,60660.0,60659.0,0.002634]
[1728617189627,0.67145117,60660.0,60659.0,0.002634]
[1728617190092,0.52097536,60660.0,60659.0,0.002634]
[1728617190299,0.67145117,60660.0,60659.0,0.002634]
[1728617190507,0.74542036,60660.0,60659.0,0.002634]
[1728617192438,0.79249765,60660.0,60659.0,0.002634]
[1728617193331,0.71852846,60660.0,60659.0,0.002634]
[1728617196516,0.81747683,60660.0,60659.0,0.002634]
[1728617197871,0.64419334,60660.0,60659.0,0.002634]
[1728617198771,0.54522846,60660.0,60659.0,0.002634]
[1728617198974,0.61945188,60660.0,60659.0,0.002634]
[1728617199190,0.54522846,60660.0,60659.0,0.002634]
[1728617199415,0.44645191,60660.0,60659.0,0.002634]
[1728617199647,0.54522846,60660.0,60659.0,0.002634]
[1728617200517,0.44645191,60660.0,60659.0,0.002634]
[1728617201468,0.54522846,60660.0,60659.0,0.001634]
[1728617201941,0.54522846,60660.0,60659.0,0.005634]
[1728617207557,0.64419395,60660.0,60659.0,0.005634]
[1728617207777,0.54522846,60660.0,60659.0,0.005634]
[1728617207998,0.64419395,60660.0,60659.0,0.005634]
[1728617208452,0.72450883,60660.0,60659.0,0.005634]
[1728617208938,0.64419395,60660.0,60659.0,0.005634]
[1728617210447,0.5454174,60660.0,60659.0,0.005634]
[1728617211104,0.66719395,60660.0,60659.0,0.005634]
[1728617213736,0.56822846,60660.0,60659.0,0.005634]
[1728617217126,0.94610501,60660.0,60659.0,0.005634]
[1728617217599,1.11554771,60660.0,60659.0,0.005634]
[1728617218075,1.01677116,60660.0,60659.0,0.005634]
[1728617219293,1.11554771,60660.0,60659.0,0.005634]
[1728617220009,1.01677116,60660.0,60659.0,0.005634]
[1728617221013,0.93537116,60660.0,60659.0,0.005634]
[1728617225396,0.83767116,60660.0,60659.0,0.005634]
[1728617227375,0.57133168,60660.0,60659.0,0.005634]
[1728617227616,0.44645191,60660.0,60659.0,0.005634]
[1728617227857,0.52064108,60660.0,60659.0,0.005634]
[1728617229022,0.5206405,60660.0,60659.0,0.005634]
[1728617229548,0.3513312,60660.0,60659.0,0.005634]
[1728617229771,0.27714261,60660.0,60659.0,0.005634]
[1728617229990,0.27714261,60660.0,60659.0,0.086834]
[1728617234224,0.02999906,60660.0,60659.0,0.086834]
[1728617234464,0.02999906,60660.0,60659.0,0.328204]
[1728617234919,0.002817,60660.0,60659.0,0.328204]
[1728617235157,0.02979166,60660.0,60659.0,0.324204]
[1728617235621,0.02779166,60660.0,60659.0,0.334204]
[1728617235899,0.02779166,60660.0,60659.0,0.336204]
[1728617241383,0.02779166,60660.0,60659.0,0.341204]
[1728617243709,0.000817,60660.0,60659.0,0.341204]
[1728617244166,0.000817,60660.0,60659.0,0.52584587]
[1728617244396,0.000817,60660.0,60659.0,0.62462242]
[1728617245107,0.000817,60660.0,60659.0,0.61462242]
[1728617245836,0.000817,60660.0,60659.0,0.61262242]
[1728617246296,0.000817,60660.0,60659.0,0.62162242]
[1728617246508,0.000817,60660.0,60659.0,0.62662242]
[1728617246719,0.000817,60660.0,60659.0,0.64062242]
[1728617246936,0.000817,60660.0,60659.0,0.61262242]
[1728617247398,0.000817,60660.0,60659.0,0.64062242]
[1728617249259,0.000817,60660.0,60659.0,0.64060189]
[1728617250384,0.000817,60660.0,60659.0,0.54182534]
[1728617252085,0.000817,60660.0,60659.0,0.5265133]
[1728617252297,0.000817,60660.0,60659.0,0.54182534]
[1728617252526,0.000817,60660.0,60659.0,0.54182614]
[1728617255000,0.000817,60660.0,60659.0,0.54102375]
[1728617255920,0.000817,60660.0,60659.0,0.52571091]
[1728617256124,0.000817,60660.0,60659.0,0.54102907]
[1728617259525,0.000817,60660.0,60659.0,0.54103878]
[1728617259756,0.000817,60660.0,60659.0,0.52571091]
[1728617260010,0.000817,60660.0,60659.0,0.54103905]
[1728617263036,0.000817,60660.0,60659.0,0.6398156]
[1728617263265,0.000817,60660.0,60659.0,0.66434062]
[1728617266530,0.000817,60660.0,60659.0,0.62448746]
[1728617266873,0.000817,60660.0,60659.0,0.66439216]
[1728617275166,0.000817,60660.0,60659.0,0.56561561]
[1728617276902,0.000817,60660.0,60659.0,0.52571091]
[1728617277149,0.000817,60660.0,60659.0,0.5656857]
[1728617277830,0.000817,60660.0,60659.0,0.3914857]
[1728617278093,0.000817,60660.0,60659.0,0.2221764]
[1728617282600,0.000817,60660.0,60659.0,0.22217836]
[1728617287158,0.000817,60660.0,60659.0,0.61942101]
[1728617287433,0.000817,60660.0,60659.0,0.61612443]
[1728617287666,0.000817,60660.0,60659.0,0.56698766]
[1728617288390,0.000817,60660.0,60659.0,0.64069281]
[1728617288673,0.000817,60660.0,60659.0,0.44068514]
[1728617289367,0.000817,60660.0,60659.0,0.39148766]
[1728617289587,0.00010785,60660.0,60659.0,0.39148766]
[1728617292892,0.00010785,60660.0,60659.0,0.35151091]
[1728617293131,0.00010785,60660.0,60659.0,0.39149626]
[1728617293372,0.00010785,60660.0,60659.0,0.46520141]
[1728617293598,0.00010785,60660.0,60659.0,0.39149626]
[1728617294289,0.00010785,60660.0,60659.0,0.46520141]
[1728617296386,0.00010785,60660.0,60659.0,0.46520157]
[1728617296612,0.00010785,60660.0,60659.0,0.42521606]
[1728617296834,0.00010785,60660.0,60659.0,0.46520152]
[1728617297053,0.00010785,60660.0,60659.0,0.46531885]
[1728617299164,0.00010785,60660.0,60659.0,0.29600955]
[1728617301678,0.00010785,60660.0,60659.0,0.29601513]
[1728617303881,0.00013877,60661.0,60659.0,0.14764513]
[1728617304142,0.00072957,60662.0,60661.0,0.153365]
[1728617304381,0.00072957,60662.0,60661.0,0.24256719]
[1728617304582,0.02666546,60662.0,60661.0,0.24256719]
[1728617304787,0.00072957,60662.0,60661.0,0.24256719]
[1728617304960,0.02666592,60662.0,60661.0,0.24256719]
[1728617305157,0.00072957,60662.0,60661.0,0.24256719]
[1728617305375,0.02666592,60662.0,60661.0,0.25556719]
[1728617305576,0.00072957,60662.0,60661.0,0.25556719]
[1728617305781,0.02666506,60662.0,60661.0,0.25556719]
[1728617305965,0.00072957,60662.0,60661.0,0.25556719]
[1728617306172,0.02666506,60662.0,60661.0,0.25556719]
[1728617306387,0.02666506,60662.0,60661.0,0.2555666]
[1728617307489,0.02666506,60662.0,60661.0,0.2695666]
[1728617309603,6e-08,60662.0,60661.0,1.06591458]
[1728617309845,0.000817,60671.0,60669.0,0.260345]
[1728617310079,0.000817,60671.0,60669.0,0.8406887]
[1728617310318,0.000817,60671.0,60669.0,0.83739286]
[1728617310555,0.000817,60671.0,60669.0,0.83729193]
[1728617311044,0.000817,60671.0,60669.0,0.84929193]
[1728617311276,0.000817,60671.0,60669.0,0.83729193]
[1728617311508,0.000817,60671.0,60669.0,0.65173883]
[1728617311745,0.000817,60671.0,60669.0,0.73651538]
[1728617312194,0.000817,60671.0,60669.0,0.75051538]
[1728617312614,0.000817,60671.0,60669.0,0.76651538]
[1728617312858,0.000817,60671.0,60669.0,0.76646208]
[1728617313130,0.000817,60671.0,60669.0,0.87505565]
[1728617313355,0.000817,60671.0,60669.0,0.9878322]
[1728617314237,0.000817,60671.0,60669.0,0.96328157]
[1728617315116,0.000817,60671.0,60669.0,0.96128157]
[1728617315336,0.000817,60671.0,60669.0,0.86323863]
[1728617315982,0.000817,60671.0,60669.0,0.8234074]
[1728617316217,0.000817,60671.0,60669.0,0.93668971]
[1728617317093,0.000817,60671.0,60669.0,0.83791316]
[1728617317316,0.000817,60671.0,60669.0,0.81342782]
[1728617317549,0.000817,60671.0,60669.0,0.83791316]
[1728617317762,0.000817,60671.0,60669.0,0.81342782]
[1728617317970,0.000817,60671.0,60669.0,0.93668971]
[1728617318203,0.000817,60671.0,60669.0,0.84071073]
[1728617318446,0.000817,60671.0,60669.0,0.85119607]
[1728617318667,0.000817,60671.0,60669.0,0.86519607]
[1728617318900,0.000817,60671.0,60669.0,0.85119607]
[1728617319120,0.000817,60671.0,60669.0,0.78538623]
[1728617319347,0.000817,60671.0,60669.0,0.81338623]
[1728617319597,0.000817,60671.0,60669.0,0.88767744]
[1728617319809,0.000817,60671.0,60669.0,0.89816278]
[1728617320032,0.000817,60671.0,60669.0,0.79938623]
[1728617320263,0.000817,60671.0,60669.0,0.91216278]
[1728617320469,0.000817,60671.0,60669.0,0.88767744]
[1728617321994,0.000817,60671.0,60669.0,0.88967744]
[1728617322157,0.000817,60671.0,60669.0,0.74193418]
[1728617322368,0.000817,60671.0,60669.0,0.84071073]
[1728617322805,0.000817,60671.0,60669.0,0.72663085]
[1728617323038,0.000817,60671.0,60669.0,0.84069503]
[1728617326275,0.000817,60671.0,60669.0,0.84069482]
[1728617327505,0.000817,60671.0,60669.0,0.73991827]
[1728617327743,0.000817,60671.0,60669.0,0.56971827]
[1728617328202,0.000817,60671.0,60669.0,0.59417814]
[1728617328419,0.000817,60671.0,60669.0,0.64311094]
[1728617329143,0.000817,60671.0,60669.0,0.56971827]
[1728617329604,0.000817,60671.0,60669.0,0.55571827]
[1728617329836,0.000817,60671.0,60669.0,0.54171827]
[1728617330043,0.000817,60671.0,60669.0,0.55571827]
[1728617330938,0.000817,60671.0,60669.0,0.55071827]
[1728617331621,0.000817,60671.0,60669.0,0.56471827]
[1728617332074,0.000817,60671.0,60669.0,0.55071827]
[1728617332323,0.000817,60671.0,60669.0,0.45194172]
[1728617332561,0.000817,60671.0,60669.0,0.55071827]
[1728617332806,0.000817,60671.0,60669.0,0.56471827]
[1728617336062,0.000817,60671.0,60669.0,0.5647486]
[1728617336321,0.000817,60671.0,60669.0,0.54943085]
[1728617336558,0.000817,60671.0,60669.0,0.56474861]
[1728617339634,0.000818,60676.0,60670.0,0.1]
[1728617339843,0.000818,60676.0,60675.0,0.148331]
[1728617340049,0.000818,60676.0,60675.0,0.16364876]
[1728617340464,0.000818,60676.0,60675.0,0.16864876]
[1728617341761,0.000818,60676.0,60675.0,0.18264876]
[1728617342495,0.000818,60676.0,60675.0,0.19664876]
[1728617342711,0.174518,60676.0,60675.0,0.19664876]
[1728617344719,0.174518,60676.0,60675.0,0.16864876]
[1728617344929,0.174518,60676.0,60675.0,0.19664876]
[1728617345191,0.174518,60676.0,60675.0,0.167331]
[1728617345410,0.174518,60676.0,60675.0,0.153331]
[1728617345636,0.174518,60676.0,60675.0,0.166331]
[1728617345858,0.174518,60676.0,60675.0,0.180331]
[1728617356864,0.174518,60676.0,60675.0,0.22947567]
[1728617358477,0.174518,60676.0,60675.0,0.180331]
[1728617358695,0.174518,60676.0,60675.0,0.2294723]
[1728617360965,0.174518,60676.0,60675.0,0.22947221]
[1728617365635,0.174518,60676.0,60675.0,0.180331]
[1728617366309,0.174518,60676.0,60675.0,0.2540435]
[1728617366996,0.174518,60676.0,60675.0,0.180331]
[1728617367224,0.174518,60676.0,60675.0,0.2540435]
[1728617370170,0.174518,60676.0,60675.0,0.180331]
[1728617370376,0.174518,60676.0,60675.0,0.2540474]
[1728617370611,0.174518,60676.0,60675.0,0.22947995]
[1728617372757,0.174518,60676.0,60675.0,0.180331]
[1728617373139,0.174518,60676.0,60675.0,0.2540474]
[1728617374253,0.174518,60676.0,60675.0,0.180331]
[1728617374491,0.174518,60676.0,60675.0,0.2540622]
[1728617375321,0.174518,60676.0,60675.0,0.25406588]
[1728617375534,0.174518,60676.0,60675.0,0.180331]
[1728617375776,0.092418,60676.0,60675.0,0.180331]
[1728617376193,0.092418,60676.0,60675.0,0.27861953]
[1728617376619,0.092418,60676.0,60675.0,0.25407267]
[1728617376841,0.092418,60676.0,60675.0,0.25407438]
[1728617377768,0.000818,60676.0,60675.0,0.34487438]
[1728617378005,0.000818,60676.0,60675.0,0.5205403]
[1728617378674,0.000818,60676.0,60675.0,0.5075403]
[1728617379118,0.000818,60676.0,60675.0,0.5215403]
[1728617379569,0.000818,60676.0,60675.0,0.5075403]
[1728617379995,0.000818,60676.0,60675.0,0.5215403]
[1728617380391,0.000818,60676.0,60675.0,0.5075403]
[1728617380799,0.000818,60676.0,60675.0,0.65873197]
[1728617381004,0.000818,60676.0,60675.0,0.67273197]
[1728617381222,0.000818,60676.0,60675.0,0.6215403]
[1728617381439,0.000818,60676.0,60675.0,0.6075403]
[1728617381736,0.000818,60676.0,60675.0,0.6265403]
[1728617382127,0.000818,60676.0,60675.0,0.6285403]
[1728617386138,0.00077153,60676.0,60675.0,0.6285403]
[1728617389101,0.00077153,60676.0,60675.0,0.65307067]
[1728617389394,0.00077153,60676.0,60675.0,0.65107067]
[1728617389982,0.00077153,60676.0,60675.0,0.63707067]
[1728617390339,0.00077153,60676.0,60675.0,0.65107067]
[1728617390985,0.00077153,60676.0,60675.0,0.63707067]
[1728617391624,0.00077153,60676.0,60675.0,0.63907067]
[1728617391830,0.00077153,60676.0,60675.0,0.65306777]
[1728617398547,0.00077153,60676.0,60675.0,0.65106777]
[1728617401004,0.00077153,60676.0,60675.0,0.6265403]
[1728617401910,0.00077153,60676.0,60675.0,0.6285403]
[1728617402158,0.00077153,60676.0,60675.0,0.6265403]
[1728617402395,0.00077153,60676.0,60675.0,0.6285403]
[1728617403056,0.00077153,60676.0,60675.0,0.6265403]
[1728617404006,0.00077153,60676.0,60675.0,0.4556403]
[1728617404467,0.00077153,60676.0,60675.0,0.57827263]
[1728617404968,0.00077153,60676.0,60675.0,0.4556403]
[1728617405182,0.00077153,60676.0,60675.0,0.47098545]
[1728617405889,0.00077153,60676.0,60675.0,0.58861778]
[1728617406111,0.00077153,60676.0,60675.0,0.564762]
[1728617406364,0.17817153,60676.0,60675.0,0.27027534]
[1728617406560,0.17817153,60676.0,60675.0,0.19667615]
[1728617406819,0.17817153,60676.0,60675.0,0.19167615]
[1728617407478,0.17817153,60676.0,60675.0,0.17767615]
[1728617407687,0.17817153,60676.0,60675.0,0.17931015]
[1728617408125,0.17817153,60676.0,60675.0,0.19131015]
[1728617408375,0.17817153,60676.0,60675.0,0.16531015]
[1728617408586,0.17817153,60676.0,60675.0,0.17931015]
[1728617408815,0.17817153,60676.0,60675.0,0.19031015]
[1728617409029,0.17817153,60676.0,60675.0,0.16531015]
[1728617409246,0.17817153,60676.0,60675.0,0.149965]
[1728617409449,0.17817153,60676.0,60675.0,0.160965]
[1728617409875,0.17817153,60676.0,60675.0,0.243365]
[1728617410547,0.17817153,60676.0,60675.0,0.257365]
[1728617410762,0.17817153,60676.0,60675.0,0.246365]
[1728617410982,0.17817153,60676.0,60675.0,0.260365]